[Event "44th Chess Olympiad Women 2022"]
[Site "Chennai"]
[Date "2022.07.31"]
[Round "3.8"]
[White "Paehtz, Elisabeth"]
[Black "Georgescu, Lena"]
[Result "1/2-1/2"]
[WhiteElo "2484"]
[BlackElo "2279"]
[Annotator "RC"]
[PlyCount "141"]
[EventDate "2022.??.??"]
[TimeControl "60"]

1. d4 {[%emt 0:00:02]} Nf6 {[%emt 0:00:05]} 2. c4 {[%emt 0:00:02]} e6 {[%emt 0:
00:00]} 3. Nf3 {[%emt 0:00:03]} d5 {[%emt 0:00:05]} 4. g3 {[%emt 0:00:03]} Bb4+
{[%emt 0:00:05]} 5. Bd2 {[%emt 0:00:10]} Be7 {[%emt 0:00:04]} 6. Bg2 {[%emt 0:
00:00]} O-O {[%emt 0:00:09]} 7. Qc2 {[%emt 0:00:18]} c6 {[%emt 0:03:50]} 8. O-O
{[%emt 0:00:54]} Nbd7 {[%emt 0:00:05]} 9. Rc1 {[%emt 0:06:03]} b6 {[%emt 0:00:
00]} 10. Bf4 {[%emt 0:07:53]} Bb7 {[%emt 0:07:15]} 11. cxd5 {[%emt 0:10:12]}
cxd5 {[%emt 0:00:25]} 12. Bc7 {[%emt 0:02:24]} Qe8 {[%emt 0:00:16]} 13. Nc3 {
[%emt 0:03:33]} Nb8 {[%emt 0:18:52]} 14. a4 {[%emt 0:21:29]} Na6 {[%emt 0:00:
00]} 15. Be5 {[%emt 0:05:31]} Nb4 {[%emt 0:00:19]} 16. Qb3 {[%emt 0:00:58]} Bc6
{[%emt 0:09:28]} 17. Bf4 {[%emt 0:05:20]} a5 {[%emt 0:03:56]} 18. Ne5 {[%emt 0:
00:00]} Bd7 {[%emt 0:04:38]} 19. e4 {[%emt 0:11:09]} dxe4 {[%emt 0:04:27]} 20.
Nxe4 {[%emt 0:00:04]} Rd8 {[%emt 0:13:08]} 21. Nc3 {[%emt 0:05:55]} Nh5 {
[%emt 0:04:34]} 22. Be3 {[%emt 0:01:09]} Nf6 {[%emt 0:00:07]} 23. Bf4 {[%emt 0:
00:00]} Nh5 {[%emt 0:00:05]} 24. Bd2 {[%emt 0:00:05]} Nf6 {[%emt 0:00:35]} 25.
Re1 {[%emt 0:01:43]} Rc8 {[%emt 0:02:39]} 26. Bg5 {[%emt 0:02:44]} Qd8 {
[%emt 0:01:57]} 27. Rad1 {[%emt 0:01:20]} h6 {[%emt 0:02:26]} 28. Bf4 {[%emt 0:
00:00]} Nfd5 {[%emt 0:03:55]} 29. Bd2 {[%emt 0:01:39]} Bc6 {[%emt 0:01:44]} 30.
Nxc6 {[%emt 0:00:43]} Rxc6 {[%emt 0:00:12]} 31. Nxd5 {[%emt 0:01:51]} Nxd5 {
[%emt 0:00:27]} 32. Bxd5 {[%emt 0:00:47]} exd5 {[%emt 0:00:07]} 33. Qb5 {
[%emt 0:01:46]} Rc4 {[%emt 0:02:31]} 34. b3 {[%emt 0:02:48]} Rxd4 {[%emt 0:00:
00]} 35. Bc3 {[%emt 0:00:24]} Rxd1 {[%emt 0:00:38]} 36. Rxd1 {[%emt 0:00:03]}
Bc5 {[%emt 0:01:00]} 37. Bd4 {[%emt 0:01:15]} Bxd4 {[%emt 0:01:06]} 38. Rxd4 {
[%emt 0:00:04]} Qc7 {[%emt 0:00:50]} 39. Qxd5 {[%emt 0:00:26]} Re8 {[%emt 0:00:
00]} 40. Kg2 {[%emt 0:01:17]} g6 {[%emt 0:01:07]} 41. Rc4 {[%emt 0:31:39]} Qe5
{[%emt 0:08:55]} 42. Qb7 {[%emt 0:00:00]} Re6 {[%emt 0:03:01]} 43. Rf4 {
[%emt 0:00:00]} Rf6 {[%emt 0:01:43]} 44. Qe4 {[%emt 0:00:00]} Qxe4+ {[%emt 0:
00:00]} 45. Rxe4 {[%emt 0:00:00]} h5 {[%emt 0:00:30]} 46. Re5 {[%emt 0:00:00]}
Kg7 {[%emt 0:00:20]} 47. Rb5 {[%emt 0:00:00]} Re6 {[%emt 0:00:19]} 48. h3 {
[%emt 0:00:00]} Kf6 {[%emt 0:01:34]} 49. Kf3 {[%emt 0:00:00]} Ke7 {[%emt 0:00:
00]} 50. g4 {[%emt 0:00:00]} hxg4+ {[%emt 0:00:12]} 51. hxg4 {[%emt 0:00:00]}
Kd7 {[%emt 0:01:32]} 52. Kf4 {[%emt 0:00:00]} f6 {[%emt 0:05:10]} 53. Kg3 {
[%emt 0:00:00]} g5 {[%emt 0:02:18]} 54. f4 {[%emt 0:00:00]} Re3+ {[%emt 0:00:
00]} 55. Kf2 {[%emt 0:00:00]} gxf4 {[%emt 0:02:28]} 56. Rxb6 {[%emt 0:00:00]}
Ke7 {[%emt 0:00:31]} 57. Rb5 {[%emt 0:00:00]} Ke6 {[%emt 0:00:12]} 58. Rxa5 {
[%emt 0:00:06]} Rxb3 {[%emt 0:00:04]} 59. Rf5 {[%emt 0:00:52]} Rb4 {[%emt 0:00:
00]} 60. a5 {[%emt 0:00:11]} Ra4 {[%emt 0:00:04]} 61. Kf3 {[%emt 0:00:19]} Ke7
{[%emt 0:00:38]} 62. Rb5 {[%emt 0:01:24]} Kd7 {[%emt 0:03:11]} 63. Rb6 {
[%emt 0:00:53]} Ke7 {[%emt 0:01:54]} 64. a6 {[%emt 0:00:05]} Kf7 {[%emt 0:00:
00]} 65. Rb7+ {[%emt 0:01:14]} Kg6 {[%emt 0:00:54]} 66. a7 {[%emt 0:00:49]} Kh6
{[%emt 0:00:20]} 67. Rc7 {[%emt 0:02:18]} Kg6 {[%emt 0:00:05]} 68. Re7 {
[%emt 0:01:15]} Kh6 {[%emt 0:00:26]} 69. Re8 {[%emt 0:01:03]} Rxa7 {[%emt 0:00:
00]} 70. Kxf4 {[%emt 0:00:04]} Kg6 {[%emt 0:00:16]} 71. Ke4 {[%emt 0:00:43]}
1/2-1/2

[Event "44th Chess Olympiad Women 2022"]
[Site "Chennai"]
[Date "2022.07.31"]
[Round "3.8"]
[White "Wagner, Dinara"]
[Black "Stoeri, Laura"]
[Result "1-0"]
[WhiteElo "2341"]
[BlackElo "2084"]
[Annotator "RC"]
[PlyCount "89"]
[EventDate "2022.??.??"]
[TimeControl "60"]

1. d4 {[%emt 0:00:04]} Nf6 {[%emt 0:00:06]} 2. Nf3 {[%emt 0:00:08]} e6 {
[%emt 0:00:07]} 3. c4 {[%emt 0:00:04]} Bb4+ {[%emt 0:00:18]} 4. Bd2 {[%emt 0:
00:00]} Qe7 {[%emt 0:00:06]} 5. g3 {[%emt 0:00:12]} Nc6 {[%emt 0:00:11]} 6. a3
{[%emt 0:00:10]} Bxd2+ {[%emt 0:00:45]} 7. Qxd2 {[%emt 0:00:04]} O-O {[%emt 0:
00:00]} 8. Bg2 {[%emt 0:00:20]} d6 {[%emt 0:08:04]} 9. O-O {[%emt 0:01:20]} e5
{[%emt 0:05:02]} 10. d5 {[%emt 0:00:06]} Nb8 {[%emt 0:00:24]} 11. Nc3 {[%emt 0:
00:00]} Nbd7 {[%emt 0:09:25]} 12. e4 {[%emt 0:03:38]} Nc5 {[%emt 0:05:06]} 13.
Qc2 {[%emt 0:01:14]} a5 {[%emt 0:00:11]} 14. b4 {[%emt 0:04:35]} Na6 {[%emt 0:
00:00]} 15. Qb2 {[%emt 0:09:19]} Bd7 {[%emt 0:02:01]} 16. Ne1 {[%emt 0:06:51]}
Rfb8 {[%emt 0:16:04]} 17. Nd3 {[%emt 0:02:39]} c6 {[%emt 0:05:20]} 18. Rfe1 {
[%emt 0:23:38]} Be8 {[%emt 0:09:28]} 19. Qd2 {[%emt 0:12:01]} Nd7 {[%emt 0:00:
00]} 20. Rec1 {[%emt 0:11:34]} Qd8 {[%emt 0:08:04]} 21. Rab1 {[%emt 0:00:41]}
axb4 {[%emt 0:03:40]} 22. axb4 {[%emt 0:00:08]} Nb6 {[%emt 0:00:49]} 23. c5 {
[%emt 0:04:47]} Nc4 {[%emt 0:00:01]} 24. Qe2 {[%emt 0:01:01]} b5 {[%emt 0:00:
00]} 25. cxb6 {[%emt 0:01:14]} Qxb6 {[%emt 0:00:01]} 26. dxc6 {[%emt 0:03:02]}
Bxc6 {[%emt 0:01:27]} 27. b5 {[%emt 0:02:52]} Na3 {[%emt 0:00:31]} 28. bxc6 {
[%emt 0:01:20]} Nxb1 {[%emt 0:00:08]} 29. Nxb1 {[%emt 0:00:07]} Nc5 {[%emt 0:
00:00]} 30. Nxc5 {[%emt 0:02:18]} dxc5 {[%emt 0:00:04]} 31. Nc3 {[%emt 0:00:06]
} Qxc6 {[%emt 0:00:11]} 32. Nd5 {[%emt 0:00:10]} Kh8 {[%emt 0:01:39]} 33. Qh5 {
[%emt 0:00:56]} f6 {[%emt 0:02:05]} 34. Bf1 {[%emt 0:01:59]} g6 {[%emt 0:01:49]
} 35. Qf3 {[%emt 0:01:00]} Kg7 {[%emt 0:00:35]} 36. h4 {[%emt 0:00:34]} Ra5 {
[%emt 0:00:20]} 37. h5 {[%emt 0:01:03]} Rf8 {[%emt 0:00:22]} 38. Bc4 {[%emt 0:
00:00]} Ra7 {[%emt 0:00:24]} 39. Rb1 {[%emt 0:02:27]} f5 {[%emt 0:00:42]} 40.
Qc3 {[%emt 0:01:13]} Qe8 {[%emt 0:00:47]} 41. Rb6 {[%emt 0:08:47]} Kh6 {
[%emt 0:17:30]} 42. Bb5 {[%emt 0:01:48]} Qa8 {[%emt 0:01:59]} 43. Qxe5 {
[%emt 0:03:40]} Ra1+ {[%emt 0:03:26]} 44. Kg2 {[%emt 0:02:43]} fxe4 {[%emt 0:
00:00]} 45. Ne3 {[%emt 0:00:36]} 1-0

[Event "44th Chess Olympiad Women 2022"]
[Site "Chennai"]
[Date "2022.07.31"]
[Round "3.9"]
[White "Gaboyan, Susanna"]
[Black "Blokhin, Sofia"]
[Result "1/2-1/2"]
[WhiteElo "2270"]
[BlackElo "1996"]
[Annotator "RC"]
[PlyCount "82"]
[EventDate "2022.??.??"]
[TimeControl "60"]

1. Nf3 {[%emt 0:00:05]} g6 {[%emt 0:00:08]} 2. g3 {[%emt 0:00:08]} Bg7 {
[%emt 0:00:07]} 3. Bg2 {[%emt 0:00:06]} f5 {[%emt 0:00:07]} 4. O-O {[%emt 0:00:
00]} Nf6 {[%emt 0:00:12]} 5. d3 {[%emt 0:00:06]} O-O {[%emt 0:00:11]} 6. Nbd2 {
[%emt 0:01:53]} d6 {[%emt 0:00:30]} 7. e4 {[%emt 0:01:02]} Nc6 {[%emt 0:00:41]}
8. c3 {[%emt 0:05:31]} fxe4 {[%emt 0:04:54]} 9. dxe4 {[%emt 0:00:42]} e5 {
[%emt 0:01:59]} 10. Nc4 {[%emt 0:04:10]} Be6 {[%emt 0:04:34]} 11. Qd3 {[%emt 0:
00:00]} Nxe4 {[%emt 0:25:31]} 12. Qxe4 {[%emt 0:02:56]} d5 {[%emt 0:00:08]} 13.
Qe2 {[%emt 0:01:38]} dxc4 {[%emt 0:01:33]} 14. Ng5 {[%emt 0:00:10]} Qe7 {
[%emt 0:06:30]} 15. Ne4 {[%emt 0:05:23]} h6 {[%emt 0:04:33]} 16. Be3 {[%emt 0:
00:00]} Qe8 {[%emt 0:08:53]} 17. Rad1 {[%emt 0:07:51]} Rd8 {[%emt 0:05:14]} 18.
Rd2 {[%emt 0:18:42]} b6 {[%emt 0:05:28]} 19. Rfd1 {[%emt 0:01:07]} Rxd2 {
[%emt 0:00:56]} 20. Nxd2 {[%emt 0:04:08]} Na5 {[%emt 0:00:29]} 21. Ne4 {
[%emt 0:00:56]} Qa4 {[%emt 0:01:07]} 22. Qd2 {[%emt 0:05:19]} Kh7 {[%emt 0:00:
00]} 23. a3 {[%emt 0:10:18]} Nc6 {[%emt 0:02:49]} 24. Qe2 {[%emt 0:05:06]} Rd8
{[%emt 0:03:46]} 25. Rxd8 {[%emt 0:00:23]} Nxd8 {[%emt 0:00:05]} 26. h4 {
[%emt 0:00:12]} Nf7 {[%emt 0:05:39]} 27. h5 {[%emt 0:07:22]} g5 {[%emt 0:07:11]
} 28. Nd2 {[%emt 0:03:15]} Nd6 {[%emt 0:00:31]} 29. f4 {[%emt 0:01:06]} gxf4 {
[%emt 0:02:50]} 30. gxf4 {[%emt 0:00:26]} exf4 {[%emt 0:00:44]} 31. Bxf4 {
[%emt 0:00:41]} Qd7 {[%emt 0:01:43]} 32. Bxd6 {[%emt 0:06:07]} Qxd6 {[%emt 0:
00:00]} 33. Nxc4 {[%emt 0:00:56]} Bxc4 {[%emt 0:01:47]} 34. Qxc4 {[%emt 0:00:
00]} Qd1+ {[%emt 0:00:46]} 35. Bf1 {[%emt 0:01:17]} Qxh5 {[%emt 0:01:10]} 36.
Qxc7 {[%emt 0:05:05]} Qg5+ {[%emt 0:01:30]} 37. Kf2 {[%emt 0:01:51]} Qf5+ {
[%emt 0:00:57]} 38. Kg2 {[%emt 0:01:13]} Qg4+ {[%emt 0:00:51]} 39. Kf2 {
[%emt 0:00:43]} Qf5+ {[%emt 0:00:11]} 40. Kg1 {[%emt 0:00:23]} Qg5+ {[%emt 0:
00:00]} 41. Kf2 {[%emt 0:07:38]} Qf5+ {[%emt 0:04:22]} 1/2-1/2

[Event "44th Chess Olympiad Women 2022"]
[Site "Chennai"]
[Date "2022.07.31"]
[Round "3.9"]
[White "Mkrtchian, Lilit"]
[Black "Olde, Margareth"]
[Result "1/2-1/2"]
[WhiteElo "2362"]
[BlackElo "2235"]
[Annotator "RC"]
[PlyCount "72"]
[EventDate "2022.??.??"]
[TimeControl "60"]

1. d4 {[%emt 0:00:15]} d5 {[%emt 0:00:04]} 2. c4 {[%emt 0:01:08]} e6 {[%emt 0:
00:00]} 3. Nc3 {[%emt 0:00:23]} a6 {[%emt 0:00:07]} 4. cxd5 {[%emt 0:07:35]}
exd5 {[%emt 0:00:05]} 5. Bf4 {[%emt 0:13:28]} Nf6 {[%emt 0:00:49]} 6. e3 {
[%emt 0:01:14]} c5 {[%emt 0:00:50]} 7. dxc5 {[%emt 0:11:41]} Bxc5 {[%emt 0:00:
00]} 8. Nf3 {[%emt 0:00:09]} Nc6 {[%emt 0:00:29]} 9. Ne5 {[%emt 0:08:12]} O-O {
[%emt 0:08:27]} 10. Nxc6 {[%emt 0:00:44]} bxc6 {[%emt 0:00:05]} 11. Be2 {
[%emt 0:00:12]} a5 {[%emt 0:11:15]} 12. O-O {[%emt 0:01:54]} Ba6 {[%emt 0:00:
00]} 13. Rc1 {[%emt 0:01:21]} Bd6 {[%emt 0:02:06]} 14. Bxa6 {[%emt 0:17:52]}
Rxa6 {[%emt 0:00:08]} 15. Bxd6 {[%emt 0:00:11]} Qxd6 {[%emt 0:00:08]} 16. Na4 {
[%emt 0:00:01]} Nd7 {[%emt 0:09:54]} 17. Qd4 {[%emt 0:14:02]} f5 {[%emt 0:00:
00]} 18. g3 {[%emt 0:08:17]} g5 {[%emt 0:10:34]} 19. Nc5 {[%emt 0:05:01]} Nxc5
{[%emt 0:00:26]} 20. Rxc5 {[%emt 0:01:51]} Qf6 {[%emt 0:09:15]} 21. Qxf6 {
[%emt 0:04:41]} Rxf6 {[%emt 0:00:06]} 22. Rfc1 {[%emt 0:00:22]} Kf7 {[%emt 0:
00:00]} 23. f3 {[%emt 0:00:08]} Re6 {[%emt 0:01:39]} 24. Kf2 {[%emt 0:00:16]}
Ke7 {[%emt 0:00:43]} 25. e4 {[%emt 0:01:13]} fxe4 {[%emt 0:03:51]} 26. fxe4 {
[%emt 0:00:03]} Rxe4 {[%emt 0:10:11]} 27. Rxc6 {[%emt 0:00:05]} Rxc6 {[%emt 0:
00:00]} 28. Rxc6 {[%emt 0:00:03]} Rb4 {[%emt 0:02:24]} 29. b3 {[%emt 0:00:28]}
a4 {[%emt 0:00:24]} 30. Ke3 {[%emt 0:01:53]} axb3 {[%emt 0:00:54]} 31. axb3 {
[%emt 0:00:02]} h5 {[%emt 0:06:28]} 32. Rh6 {[%emt 0:00:41]} h4 {[%emt 0:00:22]
} 33. gxh4 {[%emt 0:00:32]} gxh4 {[%emt 0:00:07]} 34. Kd2 {[%emt 0:00:37]} Rxb3
{[%emt 0:01:18]} 35. Rxh4 {[%emt 0:00:06]} Ke6 {[%emt 0:00:20]} 36. Rh5 {
[%emt 0:00:23]} Ra3 {[%emt 0:00:20]} 1/2-1/2

[Event "44th Chess Olympiad Women 2022"]
[Site "Chennai"]
[Date "2022.07.31"]
[Round "3.9"]
[White "Narva, Mai"]
[Black "Danielian, Elina"]
[Result "1-0"]
[WhiteElo "2385"]
[BlackElo "2441"]
[Annotator "RC"]
[PlyCount "93"]
[EventDate "2022.??.??"]
[TimeControl "60"]

1. e4 {[%emt 0:00:03]} e6 {[%emt 0:00:08]} 2. d4 {[%emt 0:00:13]} d5 {[%emt 0:
00:00]} 3. Nd2 {[%emt 0:00:12]} c5 {[%emt 0:00:12]} 4. exd5 {[%emt 0:00:18]}
exd5 {[%emt 0:00:05]} 5. Bb5+ {[%emt 0:00:13]} Bd7 {[%emt 0:00:05]} 6. Bxd7+ {
[%emt 0:00:13]} Nxd7 {[%emt 0:00:15]} 7. Ne2 {[%emt 0:00:20]} Ngf6 {[%emt 0:00:
00]} 8. O-O {[%emt 0:00:19]} Be7 {[%emt 0:06:40]} 9. dxc5 {[%emt 0:00:48]} Nxc5
{[%emt 0:00:06]} 10. Ng3 {[%emt 0:00:26]} O-O {[%emt 0:09:08]} 11. Nf5 {
[%emt 0:00:38]} Re8 {[%emt 0:01:27]} 12. Nxe7+ {[%emt 0:00:41]} Qxe7 {[%emt 0:
00:00]} 13. Nf3 {[%emt 0:00:55]} Nce4 {[%emt 0:12:19]} 14. Be3 {[%emt 0:06:59]}
Qc7 {[%emt 0:06:29]} 15. c3 {[%emt 0:06:55]} a6 {[%emt 0:13:13]} 16. a4 {
[%emt 0:09:18]} Rad8 {[%emt 0:12:45]} 17. Qc2 {[%emt 0:06:44]} Ng4 {[%emt 0:00:
00]} 18. Rfe1 {[%emt 0:06:26]} d4 {[%emt 0:05:15]} 19. Bxd4 {[%emt 0:17:25]}
Ng5 {[%emt 0:04:41]} 20. Rxe8+ {[%emt 0:10:20]} Rxe8 {[%emt 0:00:03]} 21. Ne5 {
[%emt 0:00:53]} Rxe5 {[%emt 0:15:23]} 22. f3 {[%emt 0:17:34]} Ne6 {[%emt 0:00:
00]} 23. Bxe5 {[%emt 0:03:30]} Nxe5 {[%emt 0:00:27]} 24. Rd1 {[%emt 0:03:55]}
g6 {[%emt 0:00:22]} 25. b3 {[%emt 0:02:47]} h5 {[%emt 0:01:01]} 26. c4 {
[%emt 0:02:57]} h4 {[%emt 0:00:29]} 27. h3 {[%emt 0:01:30]} Nf4 {[%emt 0:00:44]
} 28. Qe4 {[%emt 0:00:50]} Qc5+ {[%emt 0:00:33]} 29. Kh1 {[%emt 0:00:42]} g5 {
[%emt 0:00:30]} 30. Qf5 {[%emt 0:00:54]} Qe7 {[%emt 0:00:29]} 31. c5 {[%emt 0:
00:00]} Ne2 {[%emt 0:00:34]} 32. Kh2 {[%emt 0:00:26]} Qc7 {[%emt 0:00:31]} 33.
Qxg5+ {[%emt 0:00:28]} Ng6+ {[%emt 0:00:35]} 34. Rd6 {[%emt 0:00:30]} Kg7 {
[%emt 0:00:00]} 35. Qf6+ {[%emt 0:00:27]} Kh7 {[%emt 0:00:17]} 36. b4 {[%emt 0:
00:00]} Ng3 {[%emt 0:00:16]} 37. Qd8 {[%emt 0:00:31]} Qxd8 {[%emt 0:00:26]} 38.
Rxd8 {[%emt 0:00:05]} Ne5 {[%emt 0:01:08]} 39. b5 {[%emt 0:00:54]} axb5 {
[%emt 0:00:03]} 40. axb5 {[%emt 0:00:06]} Kg6 {[%emt 0:01:14]} 41. c6 {[%emt 0:
00:00]} Nxc6 {[%emt 0:00:04]} 42. Rd6+ {[%emt 0:01:35]} Kg5 {[%emt 0:00:44]}
43. Rxc6 {[%emt 0:01:24]} Kf4 {[%emt 0:03:33]} 44. Rc7 {[%emt 0:01:33]} Ke3 {
[%emt 0:01:31]} 45. Kg1 {[%emt 0:00:29]} Kd2 {[%emt 0:07:11]} 46. Rxb7 {
[%emt 0:00:49]} Ke1 {[%emt 0:00:22]} 47. Re7+ {[%emt 0:00:14]} 1-0

[Event "44th Chess Olympiad Women 2022"]
[Site "Chennai"]
[Date "2022.07.31"]
[Round "3.9"]
[White "Sinitsina, Anastassia"]
[Black "Mkrtchyan, Mariam"]
[Result "1/2-1/2"]
[WhiteElo "2175"]
[BlackElo "2285"]
[Annotator "RC"]
[PlyCount "93"]
[EventDate "2022.??.??"]
[TimeControl "60"]

1. e4 {[%emt 0:00:10]} e5 {[%emt 0:00:08]} 2. Nf3 {[%emt 0:00:12]} Nc6 {
[%emt 0:00:07]} 3. Bb5 {[%emt 0:00:12]} a6 {[%emt 0:00:20]} 4. Ba4 {[%emt 0:00:
00]} Nf6 {[%emt 0:00:06]} 5. O-O {[%emt 0:00:23]} Nxe4 {[%emt 0:00:14]} 6. d4 {
[%emt 0:00:16]} b5 {[%emt 0:00:10]} 7. Bb3 {[%emt 0:00:07]} d5 {[%emt 0:00:05]}
8. dxe5 {[%emt 0:00:07]} Be6 {[%emt 0:00:06]} 9. Qe2 {[%emt 0:03:59]} Be7 {
[%emt 0:01:01]} 10. Rd1 {[%emt 0:00:54]} O-O {[%emt 0:00:19]} 11. c4 {[%emt 0:
00:00]} bxc4 {[%emt 0:00:06]} 12. Bxc4 {[%emt 0:00:03]} Bc5 {[%emt 0:00:20]}
13. Be3 {[%emt 0:00:16]} Bxe3 {[%emt 0:00:22]} 14. Qxe3 {[%emt 0:00:11]} Qb8 {
[%emt 0:00:05]} 15. Bb3 {[%emt 0:00:17]} Na5 {[%emt 0:00:18]} 16. Nbd2 {
[%emt 0:05:48]} Nxb3 {[%emt 0:00:13]} 17. axb3 {[%emt 0:00:37]} c5 {[%emt 0:00:
00]} 18. Nxe4 {[%emt 0:02:54]} dxe4 {[%emt 0:00:04]} 19. Qxe4 {[%emt 0:00:05]}
h6 {[%emt 0:00:05]} 20. Qe3 {[%emt 0:08:47]} Qxb3 {[%emt 0:03:19]} 21. Qxb3 {
[%emt 0:00:22]} Bxb3 {[%emt 0:00:11]} 22. Rdc1 {[%emt 0:00:28]} Rfc8 {[%emt 0:
00:00]} 23. Nd2 {[%emt 0:05:43]} Be6 {[%emt 0:02:49]} 24. Ne4 {[%emt 0:01:45]}
c4 {[%emt 0:00:55]} 25. f4 {[%emt 0:08:39]} Rcb8 {[%emt 0:08:38]} 26. Rc2 {
[%emt 0:03:58]} Bf5 {[%emt 0:07:27]} 27. Rxc4 {[%emt 0:04:11]} Rxb2 {[%emt 0:
00:00]} 28. Nd6 {[%emt 0:00:36]} Be6 {[%emt 0:01:19]} 29. Rd4 {[%emt 0:02:47]}
a5 {[%emt 0:05:48]} 30. f5 {[%emt 0:01:23]} Bb3 {[%emt 0:03:09]} 31. Rb4 {
[%emt 0:05:56]} Ra2 {[%emt 0:26:33]} 32. Rxa2 {[%emt 0:01:50]} Bxa2 {[%emt 0:
00:00]} 33. Rb2 {[%emt 0:01:51]} Bd5 {[%emt 0:00:25]} 34. Re2 {[%emt 0:14:24]}
Ra6 {[%emt 0:08:18]} 35. Rd2 {[%emt 0:00:37]} Bb3 {[%emt 0:01:39]} 36. Nb7 {
[%emt 0:05:20]} Ra8 {[%emt 0:08:57]} 37. Nc5 {[%emt 0:01:11]} a4 {[%emt 0:00:
00]} 38. e6 {[%emt 0:02:10]} fxe6 {[%emt 0:01:41]} 39. fxe6 {[%emt 0:00:04]}
Kf8 {[%emt 0:02:47]} 40. Rd7 {[%emt 0:01:19]} Rc8 {[%emt 0:06:06]} 41. Nxb3 {
[%emt 0:32:19]} axb3 {[%emt 0:30:06]} 42. Rb7 {[%emt 0:00:03]} Rc1+ {[%emt 0:
00:00]} 43. Kf2 {[%emt 0:00:05]} Rc2+ {[%emt 0:00:20]} 44. Kf3 {[%emt 0:00:15]}
b2 {[%emt 0:00:05]} 45. h3 {[%emt 0:00:22]} Ke8 {[%emt 0:01:03]} 46. g4 {
[%emt 0:00:34]} Rc6 {[%emt 0:02:01]} 47. Ke4 {[%emt 0:00:08]} 1/2-1/2

[Event "44th Chess Olympiad Women 2022"]
[Site "Chennai"]
[Date "2022.07.31"]
[Round "3.10"]
[White "Assaubayeva, Bibisara"]
[Black "Cori T., Deysi"]
[Result "1-0"]
[WhiteElo "2436"]
[BlackElo "2371"]
[Annotator "RC"]
[PlyCount "107"]
[EventDate "2022.??.??"]
[TimeControl "60"]

1. d4 {[%emt 0:00:02]} Nf6 {[%emt 0:01:32]} 2. c4 {[%emt 0:00:09]} e6 {[%emt 0:
00:00]} 3. Nc3 {[%emt 0:00:20]} Bb4 {[%emt 0:00:16]} 4. e3 {[%emt 0:00:10]} O-O
{[%emt 0:02:26]} 5. Bd3 {[%emt 0:00:04]} Bxc3+ {[%emt 0:13:07]} 6. bxc3 {
[%emt 0:00:02]} d6 {[%emt 0:00:05]} 7. Ne2 {[%emt 0:03:48]} e5 {[%emt 0:05:27]}
8. e4 {[%emt 0:03:24]} Re8 {[%emt 0:17:24]} 9. f3 {[%emt 0:04:32]} Nbd7 {
[%emt 0:04:16]} 10. O-O {[%emt 0:01:37]} b6 {[%emt 0:01:59]} 11. a4 {[%emt 0:
00:00]} a5 {[%emt 0:00:22]} 12. Ng3 {[%emt 0:01:42]} Nf8 {[%emt 0:05:06]} 13.
f4 {[%emt 0:08:59]} Bg4 {[%emt 0:08:04]} 14. Qe1 {[%emt 0:10:03]} exf4 {
[%emt 0:16:33]} 15. Rxf4 {[%emt 0:05:48]} c5 {[%emt 0:04:35]} 16. Rf1 {[%emt 0:
00:00]} Nh5 {[%emt 0:07:13]} 17. h3 {[%emt 0:08:54]} Nxg3 {[%emt 0:00:19]} 18.
Qxg3 {[%emt 0:00:03]} Bh5 {[%emt 0:00:07]} 19. Bf4 {[%emt 0:04:24]} Re6 {
[%emt 0:02:00]} 20. d5 {[%emt 0:02:08]} Rg6 {[%emt 0:00:19]} 21. Qh2 {[%emt 0:
00:00]} Rf6 {[%emt 0:12:44]} 22. g4 {[%emt 0:10:16]} Bg6 {[%emt 0:00:00]} 23.
h4 {[%emt 0:11:45]} h5 {[%emt 0:00:00]} 24. g5 {[%emt 0:03:54]} Rxf4 {[%emt 0:
00:00]} 25. Qxf4 {[%emt 0:00:16]} Qe7 {[%emt 0:00:00]} 26. Qd2 {[%emt 0:03:16]}
Nd7 {[%emt 0:00:00]} 27. Rf4 {[%emt 0:00:04]} Ne5 {[%emt 0:00:00]} 28. Be2 {
[%emt 0:00:10]} Re8 {[%emt 0:00:00]} 29. Kh2 {[%emt 0:02:24]} Nd7 {[%emt 0:00:
00]} 30. Rg1 {[%emt 0:01:46]} Qe5 {[%emt 0:00:00]} 31. Kh3 {[%emt 0:02:07]} Re7
{[%emt 0:03:21]} 32. Rg3 {[%emt 0:02:17]} Kh7 {[%emt 0:00:00]} 33. Bf3 {
[%emt 0:01:09]} Re8 {[%emt 0:00:00]} 34. Kg2 {[%emt 0:00:23]} Qe7 {[%emt 0:00:
00]} 35. Kf1 {[%emt 0:00:36]} Qe5 {[%emt 0:00:00]} 36. Ke1 {[%emt 0:00:58]} b5
{[%emt 0:00:00]} 37. cxb5 {[%emt 0:00:28]} Nb6 {[%emt 0:00:00]} 38. Kf2 {
[%emt 0:00:48]} Nxa4 {[%emt 0:00:46]} 39. Be2 {[%emt 0:00:01]} Nb6 {[%emt 0:00:
00]} 40. c4 {[%emt 0:00:32]} a4 {[%emt 0:00:26]} 41. Ra3 {[%emt 0:10:07]} Bxe4
{[%emt 0:18:22]} 42. Qe3 {[%emt 0:04:46]} Kg8 {[%emt 0:08:00]} 43. Bxh5 {
[%emt 0:08:02]} Nxc4 {[%emt 0:00:19]} 44. Bxf7+ {[%emt 0:00:26]} Kh8 {[%emt 0:
00:00]} 45. Bxe8 {[%emt 0:02:21]} Nxe3 {[%emt 0:00:09]} 46. Rf8+ {[%emt 0:00:
00]} Kh7 {[%emt 0:00:04]} 47. Rxe3 {[%emt 0:00:16]} Qh2+ {[%emt 0:03:35]} 48.
Kf1 {[%emt 0:01:52]} Bg2+ {[%emt 0:01:16]} 49. Ke2 {[%emt 0:01:15]} Bxd5+ {
[%emt 0:00:43]} 50. Kd3 {[%emt 0:00:18]} c4+ {[%emt 0:02:25]} 51. Kc3 {[%emt 0:
00:00]} Be4 {[%emt 0:00:35]} 52. g6+ {[%emt 0:00:38]} Bxg6 {[%emt 0:00:16]} 53.
Rh8+ {[%emt 0:00:05]} Kxh8 {[%emt 0:00:04]} 54. Bxg6 {[%emt 0:00:05]} 1-0

[Event "44th Chess Olympiad Women 2022"]
[Site "Chennai"]
[Date "2022.07.31"]
[Round "3.10"]
[White "Bravo Mallco, Kate Azumi"]
[Black "Nurgali, Nazerke"]
[Result "1-0"]
[WhiteElo "1958"]
[BlackElo "2181"]
[Annotator "ChessBase"]
[PlyCount "81"]
[EventDate "2022.??.??"]
[TimeControl "60"]

1. e4 {[%emt 0:00:38]} c6 {[%emt 0:00:12]} 2. d4 {[%emt 0:00:18]} d5 {[%emt 0:
00:00]} 3. e5 {[%emt 0:00:12]} Bf5 {[%emt 0:00:14]} 4. g4 {[%emt 0:00:27]} Bd7
{[%emt 0:00:19]} 5. Be3 {[%emt 0:00:34]} e6 {[%emt 0:00:36]} 6. Nc3 {[%emt 0:
00:00]} Ne7 {[%emt 0:01:08]} 7. Bd3 {[%emt 0:02:53]} Qc7 {[%emt 0:04:37]} 8. f4
{[%emt 0:02:00]} a6 {[%emt 0:01:24]} 9. Nf3 {[%emt 0:01:52]} b6 {[%emt 0:04:37]
} 10. Ne2 {[%emt 0:10:54]} c5 {[%emt 0:04:29]} 11. Ng3 {[%emt 0:00:15]} c4 {
[%emt 0:04:28]} 12. Bf1 {[%emt 0:00:08]} Nbc6 {[%emt 0:01:42]} 13. Bh3 {
[%emt 0:01:10]} g6 {[%emt 0:02:33]} 14. O-O {[%emt 0:01:19]} Bg7 {[%emt 0:00:
00]} 15. f5 {[%emt 0:12:28]} exf5 {[%emt 0:03:04]} 16. gxf5 {[%emt 0:00:17]}
Nxf5 {[%emt 0:05:44]} 17. Nxf5 {[%emt 0:07:14]} Bxf5 {[%emt 0:03:31]} 18. Bxf5
{[%emt 0:00:03]} gxf5 {[%emt 0:00:05]} 19. Nh4 {[%emt 0:01:53]} Rg8 {[%emt 0:
00:00]} 20. Kh1 {[%emt 0:00:42]} f4 {[%emt 0:07:57]} 21. Bxf4 {[%emt 0:02:21]}
Qd7 {[%emt 0:05:21]} 22. Bg3 {[%emt 0:09:01]} Ne7 {[%emt 0:07:53]} 23. Qh5 {
[%emt 0:02:56]} Qe6 {[%emt 0:01:53]} 24. Rf2 {[%emt 0:08:27]} h6 {[%emt 0:00:
00]} 25. Raf1 {[%emt 0:01:46]} Rf8 {[%emt 0:00:07]} 26. Ng2 {[%emt 0:07:46]}
Qg6 {[%emt 0:03:05]} 27. Qh3 {[%emt 0:05:33]} Qe4 {[%emt 0:08:04]} 28. c3 {
[%emt 0:00:01]} Ng6 {[%emt 0:01:53]} 29. Re1 {[%emt 0:01:36]} Qd3 {[%emt 0:00:
00]} 30. Qg4 {[%emt 0:01:51]} h5 {[%emt 0:01:43]} 31. Qxh5 {[%emt 0:02:19]} Rh8
{[%emt 0:00:09]} 32. Qf3 {[%emt 0:00:10]} Qxf3 {[%emt 0:00:07]} 33. Rxf3 {
[%emt 0:00:02]} Rh7 {[%emt 0:03:05]} 34. Ref1 {[%emt 0:02:21]} Bh8 {[%emt 0:00:
00]} 35. Ne3 {[%emt 0:00:07]} Ne7 {[%emt 0:01:25]} 36. e6 {[%emt 0:03:12]} f6 {
[%emt 0:00:08]} 37. Be5 {[%emt 0:00:18]} Ng8 {[%emt 0:01:15]} 38. Nxd5 {
[%emt 0:00:07]} Rc8 {[%emt 0:00:45]} 39. Bxf6 {[%emt 0:01:25]} Nxf6 {[%emt 0:
00:00]} 40. Nxf6+ {[%emt 0:00:02]} Bxf6 {[%emt 0:00:04]} 41. Rxf6 {[%emt 0:00:
00]} 1-0